fUST/lending_fUST_20260604
["ID","MTS","AMOUNT","RATE_DAILY","PERIOD"]
[423988596,1780539044000,-500.0,0.00014545,2]
[423988590,1780539044000,-300.0,0.00014528,2]
[423988578,1780539044000,-500.0,0.00014518,2]
[423988582,1780539044000,-500.0,0.00014519,2]
[423988612,1780539044000,-184.83955268,0.00014819,2]
[423988570,1780539044000,-444.97815545,0.00014245,2]
[423988572,1780539044000,-49.92721372,0.00014518,2]
[423988571,1780539044000,-55.02184455,0.00014245,2]
[423988569,1780539044000,-500.0,0.00014244,2]
[423988573,1780539044000,-488.38781379,0.00014518,2]
[423988574,1780539044000,-201.38692114,0.00014518,2]
[423988575,1780539044000,-931.48,0.00014518,2]
[423988585,1780539044000,-300.0,0.00014528,2]
[423988576,1780539044000,-26.18864976,0.00014518,2]
[423988577,1780539044000,-473.81135024,0.00014518,2]
[423988579,1780539044000,-320.80332225,0.00014518,2]
[423988588,1780539044000,-300.0,0.00014528,2]
[423988584,1780539044000,-300.0,0.00014528,2]
[423988586,1780539044000,-300.0,0.00014528,2]
[423988581,1780539044000,-500.0,0.00014518,2]
[423988583,1780539044000,-500.0,0.00014519,2]
[423988580,1780539044000,-503.13091846,0.00014518,2]
[423988587,1780539044000,-300.0,0.00014528,2]
[423988609,1780539044000,-500.0,0.00014793,2]
[423988631,1780539044000,-921.05508779,0.0001534,2]
[423988626,1780539044000,-239.41178775,0.00015183,2]
[423988640,1780539044000,-463.30255195,0.00015614,2]
[423988642,1780539044000,-500.0,0.00015615,2]
[423988638,1780539044000,-74.08062805,0.00015367,2]
[423988645,1780539044000,-931.48,0.00015888,2]
[423988656,1780539044000,-152.38,0.00016327,3]
[423988655,1780539044000,-304.76,0.00016327,3]
[423988650,1780539044000,-931.48,0.00016162,2]
[423988646,1780539044000,-500.0,0.00015889,2]
[423988639,1780539044000,-500.0,0.00015614,2]
[423988649,1780539044000,-500.0,0.00016162,2]
[423988651,1780539044000,-500.0,0.00016163,2]
[423988648,1780539044000,-366.75491314,0.00015998,2]
[423988654,1780539044000,-609.52,0.00016327,3]
[423988653,1780539044000,-1219.05,0.00016327,3]
[423988652,1780539044000,-190.2318096,0.00016289,2]
[423988658,1780539044000,-640.91547612,0.00016336,2]
[423988660,1780539044000,-18469.01993253,0.00016337,2]
[423988657,1780539044000,-457.17,0.00016327,3]
[423988644,1780539044000,-500.0,0.00015888,2]
[423988637,1780539044000,-425.91937195,0.00015367,2]
[423988647,1780539044000,-333.04070117,0.00015915,2]
[423988636,1780539044000,-241.63820247,0.00015341,2]
[423988641,1780539044000,-468.17744805,0.00015614,2]
[423988615,1780539044000,-500.0,0.00015066,2]
[423988659,1780539044000,-595.11256893,0.00016336,2]
[423988630,1780539044000,-500.0,0.0001534,2]
[423988621,1780539044000,-500.0,0.00015067,2]
[423988622,1780539044000,-500.0,0.00015067,2]
[423988623,1780539044000,-252.9956975,0.00015068,2]
[423988629,1780539044000,-170.11396256,0.00015233,3]
[423988628,1780539044000,-152.0,0.00015198,2]
[423988627,1780539044000,-152.0,0.00015198,2]
[423988620,1780539044000,-500.0,0.00015066,2]
[423988618,1780539044000,-931.48,0.00015066,2]
[423988643,1780539044000,-500.0,0.00015641,2]
[423988632,1780539044000,-10.42491221,0.0001534,2]
[423988634,1780539044000,-52.44126955,0.00015341,2]
[423988614,1780539044000,-336.4909252,0.00014852,2]
[423988633,1780539044000,-319.09437747,0.0001534,2]
[423988625,1780539044000,-500.0,0.00015093,2]
[423988624,1780539044000,-600.0,0.00015089,2]
[423988635,1780539044000,-447.55873045,0.00015341,2]
[423988743,1780539046000,-5000.0,0.00014103,2]
[423988742,1780539046000,-197.47528721,0.00013723,2]
[423988760,1780539046000,-1226.86350878,0.00016337,2]
[423988762,1780539046000,-4084.44230162,0.00016337,2]
[423988756,1780539046000,-300.0,0.00014528,2]
[423988758,1780539046000,-300.0,0.00014528,2]
[423988751,1780539046000,-66.03736212,0.00014528,2]
[423988753,1780539046000,-300.0,0.00014528,2]
[423988755,1780539046000,-300.0,0.00014528,2]
[423988745,1780539046000,-233.96263788,0.00014528,2]
[423989280,1780539084000,314.96575863,0.00023622,110]
[423989279,1780539084000,198.02914564,0.00023622,120]
[423989278,1780539084000,314.96575863,0.00023622,110]
[423989277,1780539084000,198.02914564,0.00023622,120]
[423989276,1780539084000,314.96575863,0.00023622,110]
[423989283,1780539167000,-76.97241709,0.00012695,7]
[423989282,1780539167000,-154.54935264,0.00012446,7]
[423989284,1780539203000,198.02914563,0.00023622,120]
[423989285,1780539257000,-234.43741635,0.00012568,2]
[423989296,1780539639000,406.17,5e-05,2]
[423989300,1780539652000,157843.12665152,0.00023627,30]
[423989304,1780539707000,-231.52176973,0.0001,2]
[423989305,1780539710000,-336.57899379,0.0001,2]
[423989306,1780539712000,-931.48,0.0001,2]
[423989307,1780539718000,160.72994363,0.00023627,30]
[423989309,1780539723000,722.28294468,0.00023627,120]
[423989310,1780539728000,342.94593937,0.00023627,120]
[423989311,1780539733000,243.99686671,0.00023627,120]
[423989313,1780539738000,-322.80432118,0.0001,2]
[423989312,1780539738000,-177.19567882,0.0001,2]
[423989314,1780539739000,152.15301071,0.00023627,120]
[423989315,1780539741000,-258.83556483,0.0001,2]
[423989332,1780539745000,-297.6729855,0.0001,2]
[423989336,1780539827000,-500.0,9.9e-05,2]
[423989337,1780539829000,-310.36452317,9.9e-05,2]
[423989339,1780539833000,-127.62625931,0.0001,2]
[423989338,1780539833000,-372.37374069,9.9e-05,2]
[423989340,1780539835000,-500.0,9.801e-05,2]
[423989438,1780540174000,4834.2,0.00023627,30]
[423989447,1780540217000,-323.54752497,9.415e-05,2]
[423989456,1780540232000,-4676.45247503,9.415e-05,2]
[423989457,1780540232000,-312.14276571,9.51e-05,2]
[423989461,1780540232000,-126.0262895,0.00012695,7]
[423989460,1780540232000,-226.30338948,0.00012195,7]
[423989459,1780540232000,-154.54935264,0.00012195,7]
[423989458,1780540232000,-87.04362764,0.0001,2]
[423989630,1780540242000,-1174.87,0.00014789,2]
[423989642,1780540242000,-500.0,0.00014789,2]
[423989634,1780540242000,-357.60334622,0.00014789,2]
[423989632,1780540242000,-142.39665378,0.00014789,2]
[423989645,1780540242000,-500.0,0.00014789,2]
[423989647,1780540242000,-500.0,0.00014789,2]
[423989651,1780540242000,-537.47599972,0.00014789,2]
[423989649,1780540242000,-590.2731221,0.00014789,2]
[423989650,1780540242000,-500.0,0.00014789,2]
[423989643,1780540242000,-500.0,0.00014789,2]
[423989653,1780540242000,-502.30665443,0.0001479,2]
[423989652,1780540242000,-501.86617392,0.0001479,2]
[423989663,1780540242000,-505.5445131,0.0001479,2]
[423989636,1780540242000,-500.0,0.00014789,2]
[423989640,1780540242000,-500.0,0.00014789,2]
[423989618,1780540242000,-886.185487,0.00013936,2]
[423989627,1780540242000,-500.0,0.00014789,2]
[423989628,1780540242000,-310.36452317,0.00014789,2]
[423989625,1780540242000,-152.0,0.00014415,7]
[423989616,1780540242000,-279.57551166,0.00013442,7]
[423989615,1780540242000,-60.35738492,0.00012695,7]
[423989614,1780540242000,-3546.79351919,0.00012568,2]
[423989623,1780540242000,-152.0,0.00014415,7]
[423989612,1780540242000,-704.220022,0.00012568,2]
[423989621,1780540242000,-483.62568091,0.00014271,2]
[423989619,1780540242000,-500.0,0.00013997,2]
[423989617,1780540242000,-500.0,0.00013723,2]
[423989611,1780540242000,-392.46211902,0.00012568,2]
[423989610,1780540242000,-356.52433979,0.00012568,2]
[423989664,1780540242000,-500.0,0.0001479,2]
[423989638,1780540242000,-500.0,0.00014789,2]
[423989654,1780540242000,-500.0,0.0001479,2]
[423989660,1780540242000,-513.34789306,0.0001479,2]
[423989659,1780540242000,-391.13043831,0.0001479,2]
[423989691,1780540242000,-500.0,0.00015337,2]
[423989688,1780540242000,-1174.87,0.00015337,2]
[423989690,1780540242000,-500.0,0.00015337,2]
[423989687,1780540242000,-500.0,0.00015064,2]
[423989686,1780540242000,-500.0,0.00015064,2]
[423989684,1780540242000,-634.47,0.00015063,2]
[423989685,1780540242000,-500.0,0.00015064,2]
[423989682,1780540242000,-500.0,0.00015063,2]
[423989683,1780540242000,-606.82,0.00015063,2]
[423989681,1780540242000,-337.61183117,0.00015063,2]
[423989675,1780540242000,-258.83556483,0.00015063,2]
[423989680,1780540242000,-500.0,0.00015063,2]
[423989666,1780540242000,-500.0,0.0001479,2]
[423989676,1780540242000,-1174.87,0.00015063,2]
[423989689,1780540242000,-500.0,0.00015337,2]
[423989672,1780540242000,-1033.69408554,0.00015,2]
[423989678,1780540242000,-500.0,0.00015063,2]
[423989656,1780540242000,-277.52471279,0.0001479,2]
[423989658,1780540242000,-504.33008852,0.0001479,2]
[423989655,1780540242000,-500.0,0.0001479,2]
[423989657,1780540242000,-500.0,0.0001479,2]
[423989661,1780540242000,-502.95465372,0.0001479,2]
[423989662,1780540242000,-349.0,0.0001479,2]
[423989692,1780540242000,-500.0,0.00015338,2]
[423989670,1780540242000,-8486.3071886,0.00014797,2]
[423989667,1780540242000,-518.43312782,0.0001479,2]
[423989669,1780540242000,-500.0,0.0001479,2]
[423989665,1780540242000,-500.0,0.0001479,2]
[423989671,1780540242000,-152.0,0.00014999,2]
[423989673,1780540242000,-153.06828269,0.00015,2]
[423989674,1780540242000,-202.12113271,0.00015,3]
[423989700,1780540243000,-259.7748532,0.00015611,2]
[423989702,1780540243000,-611.08745764,0.00015612,2]
[423989698,1780540243000,-152.0,0.00015476,7]
[423989699,1780540243000,-1174.87,0.00015611,2]
[423989697,1780540243000,-152.0,0.00015471,7]
[423989705,1780540243000,-548.85,0.00015777,3]
[423989701,1780540243000,-349.66595959,0.00015611,2]
[423989694,1780540243000,-283.01776684,0.00015338,2]
[423989695,1780540243000,-152.0,0.00015407,7]
[423989696,1780540243000,-152.0,0.00015412,7]
[423989703,1780540243000,-500.0,0.00015612,2]
[423989717,1780540243000,-74190.82114008,0.00015787,2]
[423989704,1780540243000,-1097.7,0.00015777,3]
[423989706,1780540243000,-274.43,0.00015777,3]
[423989716,1780540243000,-500.0,0.00015786,2]
[423989715,1780540243000,-500.0,0.00015786,2]
[423989708,1780540243000,-645.27618755,0.00015786,2]
[423989712,1780540243000,-500.0,0.00015786,2]
[423989711,1780540243000,-500.0,0.00015786,2]
[423989714,1780540243000,-500.0,0.00015786,2]
[423989709,1780540243000,-500.0,0.00015786,2]
[423989710,1780540243000,-490.14782586,0.00015786,2]
[423989735,1780540243000,-63668.41165975,0.00015787,2]
[423989693,1780540243000,-500.0,0.00015338,2]
[423989707,1780540243000,-823.3,0.00015777,3]
[423989713,1780540243000,-500.0,0.00015786,2]
[423989736,1780540244000,-500.0,0.00015787,2]
[423989740,1780540244000,-287.41003066,0.00015787,2]
[423989741,1780540244000,-31076.67850942,0.00015787,2]
[423989835,1780540246000,-5021.96157831,0.00015787,2]
[423989834,1780540246000,-10619.87322711,0.00015787,2]
[423989829,1780540246000,-19234.82637448,0.00015787,2]
[423989827,1780540246000,-234.43741635,0.00012442,2]
[423989978,1780541432000,-405.54,0.00015202,3]
[423989984,1780541432000,-500.0,0.0001521,2]
[423989989,1780541432000,-467.4494502,0.00015211,2]
[423989983,1780541432000,-500.0,0.0001521,2]
[423989991,1780541432000,-500.0,0.00015211,2]
[423989986,1780541432000,-582.11615677,0.0001521,2]
[423989982,1780541432000,-500.0,0.0001521,2]
[423990001,1780541432000,-500.0,0.00015211,2]
[423989990,1780541432000,-171.87281848,0.00015211,2]
[423989985,1780541432000,-500.0,0.0001521,2]
[423989987,1780541432000,-500.0,0.00015211,2]
[423989992,1780541432000,-500.0,0.00015211,2]
[423989988,1780541432000,-500.0,0.00015211,2]
[423990002,1780541432000,-500.0,0.00015211,2]
[423989977,1780541432000,-811.08,0.00015202,3]
[423989979,1780541432000,-202.77,0.00015202,3]
[423989975,1780541432000,-297.6729855,0.00014067,2]
[423989974,1780541432000,-267.7103083,0.0001402,2]
[423989972,1780541432000,-280.44002084,0.00013051,2]
[423989971,1780541432000,-5000.0,0.0001292,2]
[423989973,1780541432000,-1007.0018625,0.00013151,2]
[423989976,1780541432000,-309.12305087,0.00014495,2]
[423989981,1780541432000,-514.84970554,0.0001521,2]
[423989980,1780541432000,-608.32,0.00015202,3]
[423989995,1780541432000,-500.0,0.00015211,2]
[423990010,1780541432000,-500.0,0.00015211,2]
[423990021,1780541432000,-6372.48369035,0.00015212,2]
[423990022,1780541432000,-5693.91239386,0.00015212,2]
[423990020,1780541432000,-92384.66494159,0.00015212,2]
[423990019,1780541432000,-500.0,0.00015211,2]
[423990017,1780541432000,-500.0,0.00015211,2]
[423990016,1780541432000,-500.0,0.00015211,2]
[423990018,1780541432000,-500.0,0.00015211,2]
[423990015,1780541432000,-500.0,0.00015211,2]
[423990014,1780541432000,-500.0,0.00015211,2]
[423989993,1780541432000,-500.0,0.00015211,2]
[423990012,1780541432000,-500.0,0.00015211,2]
[423990011,1780541432000,-500.0,0.00015211,2]
[423990013,1780541432000,-500.0,0.00015211,2]
[423990009,1780541432000,-500.0,0.00015211,2]
[423990005,1780541432000,-500.0,0.00015211,2]
[423989998,1780541432000,-500.0,0.00015211,2]
[423990006,1780541432000,-500.0,0.00015211,2]
[423990008,1780541432000,-500.0,0.00015211,2]
[423990007,1780541432000,-304.16364946,0.00015211,2]
[423989996,1780541432000,-200.0,0.00015211,2]
[423989994,1780541432000,-500.0,0.00015211,2]
[423990023,1780541432000,-1932.89844992,0.00015212,2]
[423990024,1780541432000,-572.91685182,0.00015212,2]
[423990048,1780541444000,-4592.55885651,0.00015212,2]
[423990045,1780541444000,-3313.16792121,0.00015112,2]
[423990050,1780541444000,-16049.14753405,0.00015212,2]
[423990044,1780541444000,-3339.73672122,0.00015112,2]
[423990052,1780541444000,-2110.0,0.00015212,2]
[423990049,1780541444000,-10131.30684027,0.00015212,2]
[423990046,1780541444000,-500.0,0.0001521,2]
[423990051,1780541444000,-3277.0474745,0.00015212,2]
[423990054,1780541444000,-505.30127695,0.00015212,2]
[423990058,1780541444000,-18412.71246791,0.00015212,2]
[423990056,1780541444000,-1357.39668019,0.00015212,2]
[423990057,1780541444000,-7026.29999999,0.00015212,2]
[423990055,1780541444000,-654.5136004,0.00015212,2]
[423990047,1780541444000,-11425.61260096,0.00015212,2]
[423990063,1780541445000,-2404.81356325,0.00015212,2]
[423990107,1780541447000,-5000.0,0.00015212,2]
[423990109,1780541447000,-5725.54219994,0.00015212,2]
[423990108,1780541447000,-7845.02566234,0.00015212,2]
[423990115,1780541483000,298.95082075,0.00023633,120]
[423990263,1780541972000,-405.0,0.00013768,2]
[423990271,1780542148000,-1937.02655839,0.0001363,2]
[423990361,1780542632000,-504.43528119,0.00014,2]
[423990368,1780542632000,-550.978,0.00014712,2]
[423990358,1780542632000,-792.26,0.00012329,2]
[423990360,1780542632000,-280.24182288,0.00014,2]
[423990367,1780542632000,-347.27409194,0.00014479,2]
[423990359,1780542632000,-166.66666667,0.00013947,2]
[423990353,1780542632000,-328.56,0.00012329,2]
[423990348,1780542632000,-263.89299826,0.00012205,2]
[423990356,1780542632000,-190.14,0.00012329,2]
[423990354,1780542632000,-273.8,0.00012329,2]
[423990351,1780542632000,-473.13,0.00012329,2]
[423990352,1780542632000,-394.27,0.00012329,2]
[423990357,1780542632000,-158.45,0.00012329,2]
[423990350,1780542632000,-2993.55688315,0.00012205,2]
[423990349,1780542632000,-1742.55011859,0.00012205,2]
[423990355,1780542632000,-228.17,0.00012329,2]
[423990362,1780542632000,-896.77383322,0.00014,2]
[423990370,1780542632000,-5987.61417816,0.00014867,2]
[423990369,1780542632000,-236.21934163,0.0001484,2]
[423990363,1780542632000,-1401.2091144,0.00014,2]
[423990379,1780542632000,-500.0,0.00014911,2]
[423990378,1780542632000,-500.0,0.00014911,2]
[423990375,1780542632000,-568.45115826,0.00014911,2]
[423990380,1780542632000,-427.21461514,0.00014911,2]
[423990377,1780542632000,-500.0,0.00014911,2]
[423990381,1780542632000,-500.0,0.00014911,2]
[423990376,1780542632000,-500.0,0.00014911,2]
[423990386,1780542632000,-1483.56448036,0.00014912,2]
[423990384,1780542632000,-527.80976733,0.00014912,2]
[423990373,1780542632000,-500.0,0.00014911,2]
[423990383,1780542632000,-82459.24211898,0.00014912,2]
[423990382,1780542632000,-361.50180673,0.00014911,2]
[423990365,1780542632000,-152.0,0.00014125,7]
[423990364,1780542632000,-152.0,0.00014047,7]
[423990366,1780542632000,-814.14067248,0.00014218,2]
[423990385,1780542632000,-532.80669207,0.00014912,2]
[423990414,1780542638000,-756.81431939,0.00014812,2]
[423990413,1780542638000,-6.09428207,0.00014812,2]
[423990429,1780542640000,-1219.91665635,0.00014812,2]
[423990428,1780542640000,-326.66937278,0.00014812,2]
[423990438,1780542643000,-304.0,0.00014812,2]
[423990440,1780542643000,-805.87361292,0.00014812,2]
[423990439,1780542643000,-351.41676919,0.00014812,2]
[423990444,1780542643000,-2120.58323081,0.00014912,2]
[423990441,1780542643000,-269.96496186,0.0001484,2]
[423990442,1780542643000,-421.82025291,0.0001484,2]
[423990445,1780542643000,-7737.89753125,0.00014912,2]
[423990443,1780542643000,-8461.67387508,0.00014912,2]
[423990512,1780542646000,-1619.44437377,0.00014762,2]
[423990510,1780542646000,-3380.55562623,0.00014762,2]
[423990515,1780542646000,-5725.58173113,0.00014912,2]
[423990521,1780542646000,-20543.27439274,0.00014912,2]
[423990517,1780542646000,-842.0,0.00014912,2]
[423990523,1780542646000,-5824.62473304,0.00014912,2]
[423990514,1780542646000,-500.0,0.00014911,2]
[423990595,1780543049000,1035.38,0.00023625,120]
[423990628,1780543553000,254.5,0.00023618,120]
[423990708,1780543831000,-5000.0,0.00012451,2]
[423990706,1780543831000,-1038.00173775,0.00012326,2]
[423990702,1780543831000,-245.08905975,0.0001219,2]
[423990709,1780543831000,-159.88,0.00012577,2]
[423990711,1780543831000,-536.44427428,0.00012723,2]
[423990704,1780543831000,-166.8546957,0.00012326,2]
[423990713,1780543831000,-838.19417856,0.00012723,2]
[423990721,1780543831000,-5388.85276038,0.00014611,2]
[423990717,1780543831000,-301.74990428,0.00013393,2]
[423990719,1780543831000,-493.33422736,0.00013507,2]
[423990715,1780543831000,-167.63883571,0.00013393,2]
[423990720,1780543831000,-3608.11191579,0.00014611,2]
[423990722,1780543832000,-397.91581078,0.00014611,2]
[423990723,1780543832000,-500.0,0.00014611,2]
[423990724,1780543832000,-199.0502306,0.00014611,2]
[423990728,1780543832000,-500.0,0.00014611,2]
[423990730,1780543832000,-20083.06458805,0.00014612,2]
[423990727,1780543832000,-500.0,0.00014611,2]
[423990798,1780543838000,-3495.8960503,0.00014612,2]
[423990832,1780543840000,-1106.38514969,0.00014466,2]
[423990853,1780543843000,-1439.19849071,0.00014466,2]
[423990901,1780543846000,-6890.61094677,0.00014612,2]
[423990903,1780543846000,-2216.73817654,0.00014612,2]
[423990898,1780543846000,-2454.4163596,0.00014466,2]
[423990902,1780543846000,-473.37421687,0.00014612,2]
[423990900,1780543846000,-500.0,0.00014611,2]
[423990904,1780543846000,-1847.5,0.00014612,2]
[423990949,1780545009000,193.249999,0.00023618,120]
[423991167,1780545038000,-1296.45313373,0.000138,2]
[423991419,1780545046000,-440.782,0.00014222,2]
[423991421,1780545046000,-4243.25654419,0.00014312,2]
[423991415,1780545046000,-166.66666667,0.00014026,2]
[423991413,1780545046000,-3703.54686627,0.000138,2]
[423991417,1780545046000,-152.0,0.00014126,7]
[423991510,1780545049000,-337.02354497,0.00014312,2]
[423991513,1780545049000,-500.0,0.00014411,2]
[423991512,1780545049000,-500.0,0.00014411,2]
[423991511,1780545049000,-4849.96748436,0.000144,2]
[423991515,1780545049000,-500.0,0.00014411,2]
[423991517,1780545049000,-189.33516142,0.00014411,2]
[423991518,1780545049000,-19025.18757907,0.00014412,2]
[423991516,1780545049000,-500.0,0.00014411,2]
[423991514,1780545049000,-278.54106755,0.00014411,2]
[423991545,1780545956000,549.68882755,0.00023641,30]
[423991548,1780546051000,-654.5136004,0.00011038,2]
[423991547,1780546051000,-505.30127695,0.00011038,2]
[423991633,1780546232000,-264.55,0.00012329,2]
[423991627,1780546232000,-457.14,0.00012329,2]
[423991637,1780546232000,-183.72,0.00012329,2]
[423991629,1780546232000,-380.95,0.00012329,2]
[423991624,1780546232000,-3840.18512265,0.00010819,2]
[423991635,1780546232000,-220.46,0.00012329,2]
[423991641,1780546232000,-765.5,0.00012329,2]
[423991626,1780546232000,-5000.0,0.00010928,2]
[423991631,1780546232000,-317.46,0.00012329,2]
[423991639,1780546232000,-153.1,0.00012329,2]
[423991654,1780546232000,-500.0,0.00014011,2]
[423991643,1780546232000,-257.47201061,0.00013457,2]
[423991645,1780546232000,-352.626,0.0001383,2]
[423991652,1780546232000,-151.5,0.00013937,2]
[423991656,1780546232000,-500.0,0.00014011,2]
[423991646,1780546232000,-4364.97073587,0.00013912,2]
[423991661,1780546232000,-236145.76533489,0.00014012,2]
[423991659,1780546232000,-373.51251796,0.00014011,2]
[423991648,1780546232000,-4108.47927963,0.00013912,2]
[423991650,1780546232000,-151.5,0.00013937,2]
[423991657,1780546232000,-500.0,0.00014011,2]
[423991724,1780546238000,-220514.57368776,0.00014012,2]
[423991764,1780546241000,-51933.33396985,0.00014012,2]
[423991763,1780546241000,-643.78105749,0.00014012,2]
[423991784,1780546243000,-7648.24540325,0.00014012,2]
[423991819,1780546246000,-79366.5180973,0.00014012,2]
[423991818,1780546246000,-338.30443694,0.00014012,2]
[423991828,1780546425000,-288.54116121,0.00013365,14]
[423991883,1780547211000,-151.0,0.00010928,9]
[423991884,1780547212000,-151.0,0.00010928,9]
[423991885,1780547214000,-151.0,0.00010928,9]
[423992032,1780547434000,-850.38762055,0.00010393,2]
[423992108,1780547441000,-530.593154,0.00010393,2]
[423992107,1780547441000,-1299.92942855,0.00010393,2]
[423992122,1780547444000,-289.21213238,0.00010498,2]
[423992121,1780547444000,-737.56669387,0.00010498,2]
[423992120,1780547444000,-2319.0897969,0.00010393,2]
[423992146,1780547449000,-500.0,0.00010927,2]
[423992132,1780547449000,-2119.73471493,0.00010393,2]
[423992133,1780547449000,-3973.22117375,0.00010498,2]
[423992138,1780547449000,-500.0,0.00010927,2]
[423992139,1780547449000,-500.0,0.00010927,2]
[423992135,1780547449000,-3594.91936972,0.00010828,2]
[423992134,1780547449000,-4073.37427741,0.00010604,2]
[423992137,1780547449000,-500.0,0.00010927,2]
[423992140,1780547449000,-500.0,0.00010927,2]
[423992141,1780547449000,-385.21978366,0.00010927,2]
[423992142,1780547449000,-500.0,0.00010927,2]
[423992143,1780547449000,-500.0,0.00010927,2]
[423992145,1780547449000,-500.0,0.00010927,2]
[423992144,1780547449000,-500.0,0.00010927,2]
[423992136,1780547449000,-380.05365568,0.00010927,2]
[423992148,1780547449000,-500.0,0.00010927,2]
[423992158,1780547449000,-500.0,0.00010927,2]
[423992161,1780547449000,-352.40120125,0.00010928,7]
[423992159,1780547449000,-500.0,0.00010927,2]
[423992156,1780547449000,-500.0,0.00010927,2]
[423992157,1780547449000,-500.0,0.00010927,2]
[423992153,1780547449000,-500.0,0.00010927,2]
[423992160,1780547449000,-500.0,0.00010927,2]
[423992154,1780547449000,-500.0,0.00010927,2]
[423992151,1780547449000,-500.0,0.00010927,2]
[423992149,1780547449000,-500.0,0.00010927,2]
[423992150,1780547449000,-500.0,0.00010927,2]
[423992147,1780547449000,-500.0,0.00010927,2]
[423992162,1780547449000,-11814.87048662,0.00010928,9]
[423992152,1780547449000,-500.0,0.00010927,2]
[423992155,1780547449000,-500.0,0.00010927,2]
[423992165,1780547492000,-2880.26528507,0.00010726,2]
[423992167,1780547508000,-2726.49269467,0.00010834,2]
[423992173,1780547603000,160.48749432,0.00023618,120]
[423992174,1780547604000,160.48749432,0.00023618,120]
[423992209,1780548033000,-500.00362194,9.964e-05,2]
[423992210,1780548047000,-258.83556483,9.864e-05,2]
[423992211,1780548050000,-297.6729855,9.864e-05,2]
[423992212,1780548052000,-177.19567882,9.864e-05,2]
[423992213,1780548054000,-231.52176973,9.864e-05,2]
[423992214,1780548058000,-313.13097928,9.864e-05,2]
[423992215,1780548060000,-450.43058049,9.864e-05,2]
[423992216,1780548062000,-336.57899379,9.864e-05,2]
[423992217,1780548066000,-931.48,9.864e-05,2]
[423992218,1780548067000,-372.37374069,9.864e-05,2]
[423992220,1780548070000,-500.0,9.864e-05,2]
[423992221,1780548072000,-310.36452317,9.864e-05,2]
[423992222,1780548092000,-500.0,9.765e-05,2]
[423992223,1780548289000,-323.54752497,9.376e-05,2]
[423992243,1780548422000,-580.29848,9.094e-05,2]
[423992244,1780548426000,-156.9175465,9.094e-05,2]
[423992249,1780548428000,-426.15119389,9.094e-05,2]
[423992253,1780548430000,-397.85125961,9.094e-05,2]
[423992272,1780548578000,151.0,0.00023288,120]
[423992276,1780548596000,151.0,0.00023288,120]
[423992277,1780548612000,151.0,0.00023288,120]
[423992305,1780548631000,-355.29,0.00012329,2]
[423992299,1780548631000,-225.09546065,0.00012239,7]
[423992297,1780548631000,-152.0,0.00011893,7]
[423992296,1780548631000,-225.09546062,0.00011802,7]
[423992293,1780548631000,-190.2318096,0.00011197,2]
[423992291,1780548631000,-4583.52920147,0.00011098,2]
[423992308,1780548631000,-205.61,0.00012329,2]
[423992290,1780548631000,-358.02336081,0.00010928,7]
[423992288,1780548631000,-19473.34024581,0.00010928,9]
[423992289,1780548631000,-466.90218281,0.00010928,7]
[423992294,1780548631000,-225.09546062,0.00011474,7]
[423992285,1780548631000,-172.69618397,8.643e-05,2]
[423992287,1780548631000,-3555.901307,0.00010514,2]
[423992286,1780548631000,-939.48921889,8.913e-05,2]
[423992284,1780548631000,-5000.0,8.557e-05,2]
[423992283,1780548631000,-1058.52141418,8.471e-05,2]
[423992309,1780548631000,-171.34,0.00012329,2]
[423992292,1780548631000,-225.09546062,0.00011147,7]
[423992307,1780548631000,-246.73,0.00012329,2]
[423992295,1780548631000,-434.81631545,0.00011802,7]
[423992298,1780548631000,-360.59,0.00012083,2]
[423992306,1780548631000,-296.08,0.00012329,2]